Cogmind - Beta 13 @@@ ROGUE MODE // 2024.05.20 @ 19:19:51 Player: Some Pennies Result: Destroyed by D-53 Grenadier with Mini Grenade Launcher Performance ------------- Evolutions (0) 0 Regions Visited (4) 800 Robots Destroyed (23) 115 Value Destroyed (287) 287 Prototype IDs (4) 80 Alien Tech Used (0) 0 Bonus (0) 0 TOTAL SCORE: 1282 Bonus ------- None Cogmind --------- Core Integrity 0/250 Matter 300/300 Energy 100/100 System Corruption 0% Temperature Cool (0) Movement Core (1350) Ox26 Location -9/Mines Parts ------- > --- POWER (1) -------- (None) > --- PROPULSION (2) --- (None) > --- UTILITY (2) ------ Huge Storage Unit Seismic Detector > --- WEAPON (2) ------- (None) > --- INVENTORY (25) --- Ion Engine Light Ion Engine Heat Sink Signal Interpreter Improved Terrain Scanner Seismic Detector Light Assault Rifle Light Assault Rifle Grenade Launcher Grenade Launcher Rocket Launcher Datajack Mining Laser Peak State ------------ > --- POWER ------------ Ion Engine > --- PROPULSION ------- Light Treads Compact Wheel > --- UTILITY ---------- Huge Storage Unit Seismic Detector > --- WEAPON ----------- Medium Laser Light Assault Rifle > --- INVENTORY -------- Ion Engine Light Ion Engine Light Treads Heat Sink Signal Interpreter Seismic Detector Grenade Launcher Grenade Launcher Datajack Mining Laser [Rating: 8] Favorites ----------- Power Light Ion Engine Engine Light Ion Engine Propulsion Light Treads Treads Light Treads Wheel Compact Wheel Utility Seismic Detector Device Seismic Detector Storage Huge Storage Unit Weapon Light Assault Rifle Energy Gun Medium Laser Ballistic Gun Light Assault Rifle Launcher Grenade Launcher Build | -11 -10 -10 -10 -9 ------- Run | Yrd Mat Min Exi Min Slots Evolved . | . . . . . Power . | . . . . . Propulsion . | . . . . . Utility . | . . . . . Weapon . | . . . . . Parts Attached 15 | 7 7 1 . . Power 2 | 1 1 . . . Engine 2 | 1 1 . . . Core . | . . . . . Reactor . | . . . . . Propulsion 3 | 2 1 . . . Treads 2 | 1 1 . . . Leg . | . . . . . Wheel 1 | 1 . . . . Hover . | . . . . . Flight . | . . . . . Utility 4 | 2 1 1 . . Device 2 | 1 . 1 . . Storage 2 | 1 1 . . . Processor . | . . . . . Hackware . | . . . . . Protection . | . . . . . Artifact . | . . . . . Weapon 6 | 2 4 . . . Energy Gun 2 | 2 . . . . Energy Cannon . | . . . . . Ballistic Gun 2 | . 2 . . . Ballistic Cannon . | . . . . . Launcher 2 | . 2 . . . Special Weapon . | . . . . . Impact Weapon . | . . . . . Slashing Weapon . | . . . . . Piercing Weapon . | . . . . . Special Melee Weapon . | . . . . . Unidentified Prototypes . | . . . . . Parts Lost 6 | . 1 . . 5 Power 1 | . . . . 1 Propulsion 2 | . . . . 2 Utility . | . . . . . Weapon 3 | . 1 . . 2 Highest Loss Streak 5 | . 1 . . 5 To Critical Strikes . | . . . . . Average Slot Usage (%) 99 | . 99 100 100 97 Engine 13 | . 14 14 14 12 Treads 26 | . 24 28 28 26 Wheel 1 | . 3 . . . Device 14 | . 14 14 14 14 Storage 14 | . 14 14 14 14 Energy Gun 3 | . 8 . . . Ballistic Gun 24 | . 19 28 28 28 Naked Turns . | . . . . . Heaviest Build 90 | 15 90 87 87 87 Greatest Support 40 | 16 40 40 40 40 Greatest Overweight (x) 27 | . 5 2 2 27 Average Overweight (x) 2 | . 2 2 2 2 Largest Inventory Capacity 25 | 8 25 25 25 25 Average Capacity 23 | 6 23 25 25 25 Most Carried 13 | 5 10 13 13 13 Average Carried 10 | 2 9 10 13 13 Final Capacity 25 | 8 25 25 25 25 Final Carried 13 | 5 9 13 13 13 Class Distribution -------------------- 100% | Mutant Dominant Class ---------------- Mutant | -10/Materials Mutant | -10/Mines Mutant | -10/Exiles Mutant | -9/Mines Resources | -11 -10 -10 -10 -9 ----------- Run | Yrd Mat Min Exi Min Matter Collected 421 | 243 150 28 . . Remotely . | . . . . . Salvage Created 536 | 129 344 63 . . Parts 45 | 9 25 11 . . Haulers Intercepted 2 | . 2 . . . Recyclers Shooed 2 | . 2 . . . Parts Field Recycled . | . . . . . Retrieved Matter . | . . . . . Parts Self-Destructed . | . . . . . Prevented . | . . . . . Kills | -11 -10 -10 -10 -9 ------- Run | Yrd Mat Min Exi Min Combat Hostiles Destroyed 11 | . 8 3 . . Guns 5 | . 2 3 . . AOE 6 | . 6 . . . Classes Destroyed 7 | 2 5 . . . Worker 3 | . 3 . . . Tunneler 3 | 2 . 1 . . Hauler 2 | . 2 . . . Recycler 1 | 1 . . . . Watcher 3 | . 3 . . . Swarmer 8 | . 5 3 . . Grunt 3 | . 3 . . . Best Kill Streak 6 | 3 6 3 . . Combat Bots Only 4 | . 4 3 . . Max Kills in Single Turn 5 | 1 5 1 . . Gunslinging . | . . . . . Exploded 3 | . 3 . . . Melee . | . . . . . Uniques/NPCs Destroyed . | . . . . . Combat | -11 -10 -10 -10 -9 -------- Run | Yrd Mat Min Exi Min Hostile Shots Fired 64 | . 36 14 . 14 Missed 15 | . 10 2 . 3 Damage Taken 957 | . 368 102 . 487 Core 258 | . 58 17 . 183 Absorbed by Shields . | . . . . . Core Remaining (%) 100 | 100 . . . . Volleys Fired 48 | 6 33 9 . . Largest 2 | 2 2 2 . . Hottest 100 | 100 100 40 . . Shots Fired 96 | 12 66 18 . . Gun 93 | 12 63 18 . . Cannon . | . . . . . Launcher 3 | . 3 . . . Special . | . . . . . Kinetic 35 | . 17 18 . . Thermal 58 | 12 46 . . . Explosive 3 | . 3 . . . Electromagnetic . | . . . . . Robot Hit Streak 6 | 4 6 4 . . Robot Miss Streak 4 | 2 4 3 . . Penetration Max . | . . . . . Secondary Targets 2 | . 1 1 . . Max Gunslinging Chain 1 | . 1 1 . . Shots Hit Robots 52 | 6 36 10 . . Core Hits 34 | 4 23 7 . . Critical Kills . | . . . . . Critical Parts Destroyed . | . . . . . Critical Strikes 3 | . 3 . . . Burn 3 | . 3 . . . Melee Attacks . | . . . . . Impact . | . . . . . Slashing . | . . . . . Piercing . | . . . . . Sneak Attacks . | . . . . . Combat Hostiles . | . . . . . Follow-up Attacks . | . . . . . Damage Inflicted 855 | 74 677 104 . . Guns 595 | 74 417 104 . . Cannons . | . . . . . Explosions 260 | . 260 . . . Melee . | . . . . . Ramming . | . . . . . Kinetic 158 | . 54 104 . . Thermal 437 | 74 363 . . . Explosive 260 | . 260 . . . Electromagnetic . | . . . . . Impact . | . . . . . Slashing . | . . . . . Piercing . | . . . . . Highest Corruption . | . . . . . Average Corruption . | . . . . . Corruption Purged . | . . . . . Corruption Blocked . | . . . . . Overload Shots . | . . . . . Overflow Damage 1 | . 1 . . . Projectiles . | . . . . . Explosions 1 | . 1 . . . Melee . | . . . . . Knockbacks . | . . . . . Impact . | . . . . . Kinetic . | . . . . . Secondary . | . . . . . Self-Inflicted Damage 48 | . 48 . . . Shots 2 | . 2 . . . Rammed . | . . . . . Targets Rammed . | . . . . . Kicked . | . . . . . Crushed . | . . . . . Highest Temperature 363 | 195 363 . . . Average Temperature 121 | 93 128 . . . Received Heat Transfer 126 | . 126 . . . Effects 1 | . 1 . . . Energy Bleed 1 | . 1 . . . Siege Activations . | . . . . . Robots Corrupted . | . . . . . Combat Hostiles . | . . . . . Parts Fried . | . . . . . Impact Corruptions . | . . . . . Robots Melted 1 | . 1 . . . Combat Hostiles . | . . . . . Parts Melted 2 | . 2 . . . Heat Transferred 1517 | 222 1295 . . . Parts Sabotaged . | . . . . . Parts Stolen . | . . . . . Parts Stripped . | . . . . . Power Chain Reactions . | . . . . . Alert | -11 -10 -10 -10 -9 ------- Run | Yrd Mat Min Exi Min Peak Influence 174 | 15 174 75 . 15 Initial 9 | . 9 . . . Average 37 | 5 46 27 . 1 Maximum Alert Level . | . . . . . Low Security (%) 100 | 100 100 100 . 100 Level 1 . | . . . . . Level 2 . | . . . . . Level 3 . | . . . . . Level 4 . | . . . . . Level 5 . | . . . . . High Security . | . . . . . Max Security . | . . . . . Squads Dispatched . | . . . . . Investigation . | . . . . . Extermination . | . . . . . Reinforcement . | . . . . . Assault . | . . . . . Garrison . | . . . . . Intercept . | . . . . . Searches Triggered . | . . . . . Construction Impeded . | . . . . . Haulers Reinforced . | . . . . . Active Scanning Responses . | . . . . . Cargo Convoy Interrupts . | . . . . . Stealth | -11 -10 -10 -10 -9 --------- Run | Yrd Mat Min Exi Min Distress Signals 1 | . 1 . . . Communications Jammed . | . . . . . Distress Signals . | . . . . . Times Spotted 20 | . 13 3 . 4 Peak Tracking Total 4 | . 4 3 . 4 Tactical Retreats . | . . . . . Traps | -11 -10 -10 -10 -9 ------- Run | Yrd Mat Min Exi Min Traps Triggered 1 | . 1 . . . Indirectly . | . . . . . Trap Hack Attempts . | . . . . . Triggered . | . . . . . Disarmed . | . . . . . Reprogrammed . | . . . . . Reused . | . . . . . Traps Extracted . | . . . . . Installed . | . . . . . Triggered . | . . . . . Machines | -11 -10 -10 -10 -9 ---------- Run | Yrd Mat Min Exi Min Machines Disabled 1 | . 1 . . . Max in Single Turn 1 | . 1 . . . Machines Repaired . | . . . . . Machines Dismantled . | . . . . . Machines Sabotaged . | . . . . . Overloaded Fab Kills . | . . . . . Hacking | -11 -10 -10 -10 -9 --------- Run | Yrd Mat Min Exi Min Machines Accessed 5 | . 4 . 1 . Terminals 4 | . 4 . . . Fabricators . | . . . . . Repair Stations . | . . . . . Recycling Units . | . . . . . Scanalyzers . | . . . . . Garrison Access . | . . . . . Total Hacks 13 | . 12 . 1 . Successful 9 | . 8 . 1 . Failed 4 | . 4 . . . Catastrophic . | . . . . . Database Lockouts . | . . . . . Manual 5 | . 5 . . . Terminals 12 | . 12 . . . Fabricators . | . . . . . Repair Stations . | . . . . . Recycling Units . | . . . . . Scanalyzers . | . . . . . Garrison Access . | . . . . . Terminal Hacks 6 | . 5 . 1 . Record 1 | . . . 1 . Prototype ID Bank 2 | . 2 . . . Branch Access Points 1 | . 1 . . . Locate Traps 1 | . 1 . . . Zone Layout 1 | . 1 . . . Fabricator Hacks . | . . . . . Repair Station Hacks . | . . . . . Recycling Unit Hacks . | . . . . . Scanalyzer . | . . . . . Garrison Access Hacks . | . . . . . Unauthorized Hacks 3 | . 3 . . . Terminals 3 | . 3 . . . Botnet 3 | . 3 . . . Fabricators . | . . . . . Repair Stations . | . . . . . Recycling Units . | . . . . . Scanalyzers . | . . . . . Garrison Access . | . . . . . Data Cores Recovered . | . . . . . Used . | . . . . . Hacking Detections 4 | . 4 . . . Full Trace Events . | . . . . . Feedback Events . | . . . . . Feedback Blocked . | . . . . . Robot Schematics Acquired . | . . . . . Robots Built . | . . . . . Authchips . | . . . . . Time . | . . . . . Total Robot Build Rating . | . . . . . Part Schematics Acquired . | . . . . . Parts Built . | . . . . . Authchips . | . . . . . Time . | . . . . . Total Part Build Rating . | . . . . . Parts Repaired . | . . . . . Time . | . . . . . Parts Recycled . | . . . . . Recycled Matter . | . . . . . Retrieved Matter . | . . . . . Retrieved Components . | . . . . . Parts Scanalyzed . | . . . . . Part Schematics Acquired . | . . . . . Parts Damaged . | . . . . . Bothacking | -11 -10 -10 -10 -9 ------------ Run | Yrd Mat Min Exi Min Used RIF Installer . | . . . . . Robots Hacked . | . . . . . Non-combat . | . . . . . Combat . | . . . . . Robot Hacks Applied . | . . . . . Relay Couplers Released . | . . . . . Fabnet Peak Effective % . | . . . . . Robots Rewired . | . . . . . Allies Hacked . | . . . . . Hacks Repelled . | . . . . . Allies | -11 -10 -10 -10 -9 -------- Run | Yrd Mat Min Exi Min Total Allies . | . . . . . Largest Group . | . . . . . Highest-Rated Group . | . . . . . Highest-Rated Ally . | . . . . . Total Orders . | . . . . . Ally Attacks . | . . . . . Total Damage . | . . . . . Kills . | . . . . . Allies Corrupted . | . . . . . Allies Melted . | . . . . . Intel | -11 -10 -10 -10 -9 ------- Run | Yrd Mat Min Exi Min Robot Analysis Total . | . . . . . Derelict Logs Recovered 1 | . . 1 . . Drone Launches . | . . . . . Drone Recoveries . | . . . . . Exploration | -11 -10 -10 -10 -9 ------------- Run | Yrd Mat Min Exi Min Turns Passed 3197 | 97 1348 570 1066 116 Spaces Moved 1086 | 63 485 169 334 35 Core 5 | 4 . . . 1 Treads 844 | . 307 169 334 34 Legs . | . . . . . Wheels 237 | 59 178 . . . Hover . | . . . . . Flight . | . . . . . Fastest Speed 50 | 50 100 320 320 320 Average Speed 278 | 96 254 320 320 355 Slowest Speed 1400 | 100 320 320 320 1400 Overloaded Moves . | . . . . . Propulsion Burnouts . | . . . . . Robots Hopped . | . . . . . Cave-ins Triggered . | . . . . . Exploration Rate (%) 42 | 4 75 37 85 11 Regions Visited 4 Branch Regions 3 Pre-discovered Areas . | . . . . . Known Exits Taken 1 | . 1 . . . Unknown Exits Taken 3 | 1 . 1 1 . Scrap Searched . | . . . . . Spaces Dug . | . . . . . Terrain Destroyed 10 | . 10 . . . Melee . | . . . . . Projectile . | . . . . . AOE 10 | . 10 . . . Terrain Rammed . | . . . . . Walls Destroyed . | . . . . . Machines Disabled . | . . . . . Actions | -11 -10 -10 -10 -9 --------- Run | Yrd Mat Min Exi Min Total 1178 | 87 538 184 333 36 Wait 2 | . 1 . . 1 Move 1082 | 62 484 168 333 35 Hop . | . . . . . Pick Up 25 | 12 8 5 . . Fast Attach . | . . . . . Attach 9 | 7 2 . . . Detach 1 | . 1 . . . Swap 6 | . 5 1 . . Drop 5 | . 4 1 . . Fire 48 | 6 33 9 . . Melee . | . . . . . Ram . | . . . . . Kick . | . . . . . Crush . | . . . . . Escape Stasis . | . . . . . Rewire . | . . . . . Trap . | . . . . . Miscellaneous . | . . . . . Route ------- -11/Scrapyard -10/Materials (discovered 3 exits: [*Mat] / *Min x2) -10/Mines -10/Exiles -9/Mines History --------- Turn | Location | Event 17 | -11/Scrapyard | Discovered new exit (range 15) 98 | -11/Scrapyard | Entered Materials 309 | -10/Materials | Build established: Mutant 387 | -10/Materials | Discovered new exit (range 13) 645 | -10/Materials | Discovered new exit (range 5) 1062 | -10/Materials | Discovered new exit (range 8) 1091 | -10/Materials | Identified exit to Mines 1446 | -10/Materials | Entered Mines 1753 | -10/Mines | Learned Materials terminal intel 1859 | -10/Mines | Received a Rocket Launcher from a helpful Derelict 1927 | -10/Mines | Discovered new exit (range 11) 1994 | -10/Mines | Deemed a non-threat by the Exiles lab entrance 2016 | -10/Mines | Entered Exiles 2016 | -10/Exiles | Found Exiles lab abandoned 3028 | -10/Exiles | Discovered new exit (range 14) 3082 | -10/Exiles | Entered Mines 3119 | -9/Mines | Assembled infested the area 3124 | -9/Mines | Assisted by a Guerilla fighting off Assembled 3196 | -9/Mines | Core integrity fell below 50% 3198 | -9/Mines | Core integrity fell below 20% 3198 | -9/Mines | Destroyed by D-53 Grenadier with Mini Grenade Launcher Last Messages --------------- To the spacelab! 03028_ EXIT=FOUND LOCATION=UNKNOWN GOAL=ESCAPE 03119_ ALERT: Infestation in the mines, dispatching Demolisher response squad. 03124_ A derelict emerges from the shadows: "You need to get out of here! I've been tracking a group of Assembled to figure out where they're coming from, and they're closing on this area, come on!" 03186_ as-32024 destroyed. 03188_ Lgt. Ion Engine destroyed. 03188_ Lgt. Treads destroyed. 03190_ The unstable cave ceiling collapses. 03190_ as-75662 destroyed. 03193_ Lgt. Treads destroyed. 03194_ The unstable cave ceiling collapses. 03196_ Assault Rifle destroyed. 03197_ Lgt. Assault Rifle destroyed. Map ----- +----------------------------------------------------+ | ??????????????????????????????????????? | | ??????????????????????????????????????? | | ??????????????????????????????????????? | | ??????????????????????????????????????? | | ??????????????????????????????????????? | | ??????????????????????????????????????? | | ??????????????????????????????????????? | | ??????????????????????????????????????? | | ??????????????????????????????????????? | | ??????????????????????????????????????? | | ????????###???????????????????????????? | | ????????# ???????????????????????????? | | ????????# ?????####??????????????????? | | ????????# ????## ##?????????????????? | | ????????# ???## ##????????????????? | | ????????# ??## #????????????????? | | ????????# ### #????????????????? | | ????????# #????????????????? | | ????????# ##????????????????? | | ????????# ##?????????????????? | | ????????# ###??????????????????? | | ????????## d #???????????????????? | | ?????????# d ##??????????????????? | | ????????## #??????????????????? | | ????????# #??????????????????? | | ?????????# @ #??????????????????? | | ?????????# #??????????????????? | | ?????????# #??? ##????????????? | | ?????????# ## #????????????? | | ?????????# #????????????? | | ?????????## #???????? | | ?????????# # #???????? | | ????????# ## ##### #???????? | | ???????# ## #?###??????????????? | | ??????# #?## ##??????????????????? | | ?????# ???####???????????????????? | | ????# ??????????????????????????? | | ???# ####??????????????????????????? | | ???# #??????????????????????????????? | | ??? ???????????????????????????????? | | ???? ????????????????????????????????? | | ??????????????????????????????????????? | | ??????????????????????????????????????? | | ??????????????????????????????????????? | | ??????????????????????????????????????? | | ??????????????????????????????????????? | | ??????????????????????????????????????? | | ??????????????????????????????????????? | | ??????????????????????????????????????? | | ??????????????????????????????????????? | +----------------------------------------------------+ Best States ------------- Heat Dissipation 25 Energy Generation 10 Energy Capacity 250 Matter Stores 300 Matter Capacity 300 Sight Range 16 Terrain Scan Density 10 Evasion (%) 40 Recoil Reduction 2 Item Schematics ----------------- None Robot Schematics ------------------ None Fabricated ------------ Nothing Alien Tech Used ----------------- None Achievements -------------- None Challenges ------------ None Game ------ Seed TerrainChipNanoactuators Manual? 0 Play Time 00:11:20 Cumulative 76.0 hours Start 2024.05.20 @ 19:07:02 End 2024.05.20 @ 19:19:51 Sessions 1 Manual Loads 0 Difficulty Rogue Special Mode None Game No. 72 Rogue 67 Adventurer 5 Explorer 0 Win Type - Total 1 Types 1/0/0/0/0/0/0/0/0 Lore% 38 Gallery% 47 Achievement% 35 Wizard Run 0 Options --------- Layout 2 ASCII 0 Keyboard 0 Movement Mouse Keybinds 0 Fullscreen 2 Font 24/Smallcaps Map View 50x44 Zoom Use 0% Tactical HUD 1 Map Filters NONE Filters NONE Steam 1 RUN: 64d881f7-9fe5-46f3-8c80-e58f7ca59255